[Event "Titled Tuesday Blitz December 14 2021"]
[White "Sarana, Alexey"]
[Black "Vlassov, Nikolai"]
[WhiteFideId "24133795"]
[BlackFideId "4103360"]
[WhiteElo "2672"]
[BlackElo "2407"]
[Result "1-0"]
[Round "04"]
[TimeControl "180+1"]
[Date "2021.12.14"]
[WhiteClock "0:00:06"]
[BlackClock "0:00:07"]

1. d4 {[%clk 0:03:00]}  e6 {[%clk 0:02:59]} 2. c4 {[%clk 0:02:59]}  Nf6 {[%clk 0:02:57]} 3. Nc3 {[%clk 0:02:59]}  Bb4 {[%clk 0:02:57]} 4. e3 {[%clk 0:02:59]}  Bxc3+ {[%clk 0:02:53]} 5. bxc3 {[%clk 0:02:59]}  O-O {[%clk 0:02:52]} 6. Bd3 {[%clk 0:02:59]}  b6 {[%clk 0:02:51]} 7. e4 {[%clk 0:02:56]}  Ne8 {[%clk 0:02:46]} 8. e5 {[%clk 0:02:51]}  f5 {[%clk 0:02:46]} 9. exf6 {[%clk 0:02:40]}  Nxf6 {[%clk 0:02:44]} 10. Bg5 {[%clk 0:02:35]}  Bb7 {[%clk 0:02:42]} 11. Nf3 {[%clk 0:02:34]}  Qe8 {[%clk 0:02:37]} 12. Nh4 {[%clk 0:01:41]}  Nc6 {[%clk 0:02:27]} 13. O-O {[%clk 0:01:40]}  Qh5 {[%clk 0:02:15]} 14. Qxh5 {[%clk 0:01:19]}  Nxh5 {[%clk 0:02:15]} 15. g3 {[%clk 0:01:19]}  Na5 {[%clk 0:02:11]} 16. c5 {[%clk 0:01:16]}  Nf6 {[%clk 0:02:02]} 17. Ng2 {[%clk 0:01:03]}  Nd5 {[%clk 0:01:58]} 18. Bd2 {[%clk 0:01:00]}  Nc6 {[%clk 0:01:46]} 19. Rab1 {[%clk 0:00:46]}  Nce7 {[%clk 0:01:33]} 20. c4 {[%clk 0:00:44]}  Nf6 {[%clk 0:01:33]} 21. f3 {[%clk 0:00:42]}  Bc6 {[%clk 0:01:18]} 22. Bb4 {[%clk 0:00:42]}  Rfe8 {[%clk 0:01:14]} 23. Ne3 {[%clk 0:00:40]}  g6 {[%clk 0:01:06]} 24. Bc3 {[%clk 0:00:37]}  Rf8 {[%clk 0:01:03]} 25. Bb4 {[%clk 0:00:35]}  Rf7 {[%clk 0:01:02]} 26. Ba3 {[%clk 0:00:31]}  Nf5 {[%clk 0:00:59]} 27. Nc2 {[%clk 0:00:23]}  Ba4 {[%clk 0:00:53]} 28. Bxf5 {[%clk 0:00:12]}  gxf5 {[%clk 0:00:52]} 29. Ne3 {[%clk 0:00:12]}  f4 {[%clk 0:00:49]} 30. gxf4 {[%clk 0:00:12]}  Nh5 {[%clk 0:00:49]} 31. f5 {[%clk 0:00:12]}  exf5 {[%clk 0:00:45]} 32. Kf2 {[%clk 0:00:12]}  Nf4 {[%clk 0:00:42]} 33. Rg1+ {[%clk 0:00:12]}  Rg7 {[%clk 0:00:38]} 34. Rxg7+ {[%clk 0:00:11]}  Kxg7 {[%clk 0:00:39]} 35. d5 {[%clk 0:00:11]}  Nd3+ {[%clk 0:00:32]} 36. Ke2 {[%clk 0:00:10]}  Nxc5 {[%clk 0:00:32]} 37. Bxc5 {[%clk 0:00:09]}  bxc5 {[%clk 0:00:33]} 38. Rb7 {[%clk 0:00:09]}  Kf6 {[%clk 0:00:32]} 39. Rxc7 {[%clk 0:00:08]}  d6 {[%clk 0:00:28]} 40. Rxh7 {[%clk 0:00:07]}  f4 {[%clk 0:00:23]} 41. Ng4+ {[%clk 0:00:07]}  Kg5 {[%clk 0:00:18]} 42. h4+ {[%clk 0:00:06]}  Kf5 {[%clk 0:00:15]} 43. Rh6 {[%clk 0:00:07]}  Rf8 {[%clk 0:00:10]} 44. Re6 {[%clk 0:00:06]}  Bc2 {[%clk 0:00:07]} 45. Nh6# {[%clk 0:00:06]} 1-0


[Site "https://www.chess.com"]

[Event "Titled Tuesday Blitz December 14 2021"]
[White "Sargissyan, Sargis"]
[Black "Shipov, Sergei"]
[WhiteFideId "13303210"]
[BlackFideId "4113624"]
[WhiteElo "2174"]
[BlackElo "2743"]
[Result "1/2-1/2"]
[Round "04"]
[TimeControl "180+1"]
[Date "2021.12.14"]
[WhiteClock "0:00:04"]
[BlackClock "0:00:12"]

1. e4 {[%clk 0:03:00]}  e6 {[%clk 0:02:59]} 2. d4 {[%clk 0:03:00]}  d5 {[%clk 0:02:59]} 3. Nc3 {[%clk 0:03:01]}  h6 {[%clk 0:02:58]} 4. Bd3 {[%clk 0:02:50]}  Nc6 {[%clk 0:02:57]} 5. Nf3 {[%clk 0:02:48]}  Nb4 {[%clk 0:02:58]} 6. Be2 {[%clk 0:02:35]}  Nf6 {[%clk 0:02:57]} 7. e5 {[%clk 0:02:31]}  Ne4 {[%clk 0:02:56]} 8. a3 {[%clk 0:02:27]}  Nc6 {[%clk 0:02:51]} 9. Bd3 {[%clk 0:02:23]}  Nxc3 {[%clk 0:02:49]} 10. bxc3 {[%clk 0:02:24]}  Be7 {[%clk 0:02:48]} 11. h4 {[%clk 0:02:19]}  Na5 {[%clk 0:02:33]} 12. h5 {[%clk 0:02:09]}  c5 {[%clk 0:02:32]} 13. Rh3 {[%clk 0:01:48]}  Bd7 {[%clk 0:02:23]} 14. Rg3 {[%clk 0:01:48]}  Bf8 {[%clk 0:02:19]} 15. dxc5 {[%clk 0:01:42]}  Qc7 {[%clk 0:02:18]} 16. Be3 {[%clk 0:01:42]}  O-O-O {[%clk 0:02:08]} 17. Kf1 {[%clk 0:01:31]}  Bc6 {[%clk 0:02:05]} 18. Bd4 {[%clk 0:01:29]}  Nc4 {[%clk 0:02:03]} 19. Qe2 {[%clk 0:01:22]}  Qa5 {[%clk 0:02:03]} 20. Nd2 {[%clk 0:01:16]}  Nxd2+ {[%clk 0:01:48]} 21. Qxd2 {[%clk 0:01:16]}  Bxc5 {[%clk 0:01:48]} 22. Qe3 {[%clk 0:01:00]}  Bxd4 {[%clk 0:01:43]} 23. cxd4 {[%clk 0:00:56]}  Qc3 {[%clk 0:01:14]} 24. Ra2 {[%clk 0:00:54]}  Rdg8 {[%clk 0:01:07]} 25. Be2 {[%clk 0:00:45]}  Qxe3 {[%clk 0:01:00]} 26. Rxe3 {[%clk 0:00:37]}  Kd7 {[%clk 0:00:53]} 27. Rg3 {[%clk 0:00:28]}  f6 {[%clk 0:00:51]} 28. f4 {[%clk 0:00:24]}  Ke7 {[%clk 0:00:51]} 29. Ra1 {[%clk 0:00:17]}  fxe5 {[%clk 0:00:43]} 30. fxe5 {[%clk 0:00:17]}  Rf8+ {[%clk 0:00:43]} 31. Rf3 {[%clk 0:00:17]}  Rxf3+ {[%clk 0:00:42]} 32. Bxf3 {[%clk 0:00:18]}  Rf8 {[%clk 0:00:42]} 33. Kf2 {[%clk 0:00:17]}  Be8 {[%clk 0:00:42]} 34. Ke3 {[%clk 0:00:17]}  Rf5 {[%clk 0:00:41]} 35. g4 {[%clk 0:00:17]}  Rf8 {[%clk 0:00:40]} 36. Rb1 {[%clk 0:00:17]}  b6 {[%clk 0:00:39]} 37. Rb3 {[%clk 0:00:17]}  Ba4 {[%clk 0:00:38]} 38. Rc3 {[%clk 0:00:17]}  Kd7 {[%clk 0:00:39]} 39. Be2 {[%clk 0:00:15]}  Rc8 {[%clk 0:00:25]} 40. Rxc8 {[%clk 0:00:14]}  Kxc8 {[%clk 0:00:26]} 41. Bd3 {[%clk 0:00:10]}  Kd7 {[%clk 0:00:25]} 42. Kf4 {[%clk 0:00:10]}  Kc6 {[%clk 0:00:24]} 43. Bg6 {[%clk 0:00:07]}  Kc7 {[%clk 0:00:20]} 44. Ke3 {[%clk 0:00:06]}  a5 {[%clk 0:00:19]} 45. Kd2 {[%clk 0:00:06]}  Kd7 {[%clk 0:00:18]} 46. c3 {[%clk 0:00:06]}  Ke7 {[%clk 0:00:18]} 47. Ke3 {[%clk 0:00:07]}  Bd7 {[%clk 0:00:17]} 48. Kf4 {[%clk 0:00:07]}  Be8 {[%clk 0:00:16]} 49. Bd3 {[%clk 0:00:05]}  Kd8 {[%clk 0:00:16]} 50. Bc2 {[%clk 0:00:05]}  Kc7 {[%clk 0:00:16]} 51. Bd3 {[%clk 0:00:06]}  Kc6 {[%clk 0:00:16]} 52. Ke3 {[%clk 0:00:06]}  Kb7 {[%clk 0:00:16]} 53. Kf4 {[%clk 0:00:06]}  Kc7 {[%clk 0:00:16]} 54. Ke3 {[%clk 0:00:07]}  Kd8 {[%clk 0:00:16]} 55. Kf4 {[%clk 0:00:07]}  Ke7 {[%clk 0:00:16]} 56. Ke3 {[%clk 0:00:08]}  Ba4 {[%clk 0:00:17]} 57. Kf4 {[%clk 0:00:08]}  Bb3 {[%clk 0:00:17]} 58. Ke3 {[%clk 0:00:07]}  Kd7 {[%clk 0:00:17]} 59. Kf4 {[%clk 0:00:07]}  Bc4 {[%clk 0:00:16]} 60. Bg6 {[%clk 0:00:07]}  Ke7 {[%clk 0:00:16]} 61. Ke3 {[%clk 0:00:07]}  Bb5 {[%clk 0:00:16]} 62. Kf4 {[%clk 0:00:07]}  Be8 {[%clk 0:00:16]} 63. Bd3 {[%clk 0:00:07]}  Ba4 {[%clk 0:00:16]} 64. Bg6 {[%clk 0:00:06]}  Bd1 {[%clk 0:00:16]} 65. Bd3 {[%clk 0:00:06]}  Kd7 {[%clk 0:00:16]} 66. Bb5+ {[%clk 0:00:06]}  Kc7 {[%clk 0:00:16]} 67. Bd3 {[%clk 0:00:06]}  Kc6 {[%clk 0:00:16]} 68. Kg3 {[%clk 0:00:03]}  b5 {[%clk 0:00:15]} 69. Kf4 {[%clk 0:00:03]}  Kb6 {[%clk 0:00:15]} 70. Bg6 {[%clk 0:00:02]}  Kc7 {[%clk 0:00:13]} 71. Bf7 {[%clk 0:00:02]}  Kd7 {[%clk 0:00:13]} 72. Bg6 {[%clk 0:00:03]}  Kc7 {[%clk 0:00:12]} 73. Bd3 {[%clk 0:00:03]}  Kb6 {[%clk 0:00:12]} 74. Bg6 {[%clk 0:00:04]}  Kc7 {[%clk 0:00:12]} 1/2-1/2


[Site "https://www.chess.com"]

[Event "Titled Tuesday Blitz December 14 2021"]
[White "Seliverstov, Vladimir"]
[Black "Chigaev, Maksim"]
[WhiteFideId "4192036"]
[BlackFideId "4108116"]
[WhiteElo "2811"]
[BlackElo "3033"]
[Result "1/2-1/2"]
[Round "04"]
[TimeControl "180+1"]
[Date "2021.12.14"]
[WhiteClock "0:00:36"]
[BlackClock "0:00:37"]

1. c4 {[%clk 0:03:00]}  e6 {[%clk 0:02:59]} 2. g3 {[%clk 0:03:01]}  d5 {[%clk 0:02:59]} 3. Bg2 {[%clk 0:03:01]}  Nf6 {[%clk 0:03:00]} 4. Nf3 {[%clk 0:03:02]}  Be7 {[%clk 0:03:00]} 5. O-O {[%clk 0:03:02]}  O-O {[%clk 0:03:01]} 6. b3 {[%clk 0:03:03]}  b6 {[%clk 0:03:01]} 7. Bb2 {[%clk 0:03:03]}  Bb7 {[%clk 0:03:02]} 8. Nc3 {[%clk 0:03:02]}  c5 {[%clk 0:03:01]} 9. cxd5 {[%clk 0:03:01]}  Nxd5 {[%clk 0:03:01]} 10. Rc1 {[%clk 0:02:51]}  Nd7 {[%clk 0:02:55]} 11. d4 {[%clk 0:02:47]}  Rc8 {[%clk 0:02:55]} 12. dxc5 {[%clk 0:02:37]}  Nxc5 {[%clk 0:02:55]} 13. Ne5 {[%clk 0:02:24]}  Nxc3 {[%clk 0:02:45]} 14. Bxc3 {[%clk 0:02:24]}  Bxg2 {[%clk 0:02:45]} 15. Kxg2 {[%clk 0:02:25]}  Bf6 {[%clk 0:02:43]} 16. Qxd8 {[%clk 0:02:01]}  Rfxd8 {[%clk 0:02:44]} 17. Nf3 {[%clk 0:01:58]}  Bxc3 {[%clk 0:02:17]} 18. Rxc3 {[%clk 0:01:59]}  Ne4 {[%clk 0:02:17]} 19. Rxc8 {[%clk 0:01:58]}  Rxc8 {[%clk 0:02:18]} 20. Rd1 {[%clk 0:01:59]}  Nf6 {[%clk 0:02:17]} 21. Ne5 {[%clk 0:01:44]}  Kf8 {[%clk 0:02:17]} 22. Nd7+ {[%clk 0:01:43]}  Ke7 {[%clk 0:02:09]} 23. Nxf6 {[%clk 0:01:42]}  Kxf6 {[%clk 0:02:01]} 24. Rd7 {[%clk 0:01:43]}  Rc2 {[%clk 0:02:01]} 25. Rxa7 {[%clk 0:01:43]}  Rxe2 {[%clk 0:02:01]} 26. Ra6 {[%clk 0:01:40]}  b5 {[%clk 0:01:59]} 27. Kf3 {[%clk 0:01:30]}  Rb2 {[%clk 0:01:56]} 28. Ke3 {[%clk 0:01:27]}  g5 {[%clk 0:01:50]} 29. g4 {[%clk 0:01:21]}  Kg6 {[%clk 0:01:50]} 30. h3 {[%clk 0:01:19]}  h5 {[%clk 0:01:46]} 31. Ra5 {[%clk 0:01:14]}  h4 {[%clk 0:01:36]} 32. Kf3 {[%clk 0:00:58]}  b4 {[%clk 0:01:26]} 33. Ra4 {[%clk 0:00:51]}  Rc2 {[%clk 0:01:15]} 34. Rxb4 {[%clk 0:00:50]}  Rxa2 {[%clk 0:01:15]} 35. Rb8 {[%clk 0:00:50]}  Rb2 {[%clk 0:01:09]} 36. Rb7 {[%clk 0:00:42]}  Kf6 {[%clk 0:00:57]} 37. Kg2 {[%clk 0:00:39]}  Kg7 {[%clk 0:00:39]} 38. Kf3 {[%clk 0:00:37]}  Kg6 {[%clk 0:00:39]} 39. Rb6 {[%clk 0:00:36]}  Kf6 {[%clk 0:00:37]} 40. Rb7 {[%clk 0:00:36]} 1/2-1/2


[Site "https://www.chess.com"]

[Event "Titled Tuesday Blitz December 14 2021"]
[White "Shkapenko, Pavel"]
[Black "Perske, Thore"]
[WhiteFideId "4151933"]
[BlackFideId "12902195"]
[WhiteElo "2386"]
[BlackElo "2315"]
[Result "1-0"]
[Round "04"]
[TimeControl "180+1"]
[Date "2021.12.15"]
[WhiteClock "0:00:11"]
[BlackClock "0:00:13"]

1. e4 {[%clk 0:03:00]}  e6 {[%clk 0:02:58]} 2. d4 {[%clk 0:03:00]}  d5 {[%clk 0:02:59]} 3. exd5 {[%clk 0:03:01]}  exd5 {[%clk 0:02:59]} 4. Nf3 {[%clk 0:03:02]}  Bg4 {[%clk 0:02:59]} 5. h3 {[%clk 0:03:01]}  Bh5 {[%clk 0:02:59]} 6. Qe2+ {[%clk 0:02:58]}  Qe7 {[%clk 0:02:56]} 7. Be3 {[%clk 0:02:58]}  Nc6 {[%clk 0:02:56]} 8. Nc3 {[%clk 0:02:58]}  O-O-O {[%clk 0:02:56]} 9. g4 {[%clk 0:02:58]}  Bg6 {[%clk 0:02:56]} 10. O-O-O {[%clk 0:02:58]}  Nf6 {[%clk 0:02:56]} 11. Ne5 {[%clk 0:02:58]}  Qe6 {[%clk 0:02:11]} 12. f4 {[%clk 0:02:33]}  Be4 {[%clk 0:02:11]} 13. Rg1 {[%clk 0:02:26]}  Bb4 {[%clk 0:02:09]} 14. g5 {[%clk 0:02:11]}  Bxc3 {[%clk 0:01:57]} 15. gxf6 {[%clk 0:02:10]}  gxf6 {[%clk 0:01:50]} 16. Nxc6 {[%clk 0:02:10]}  Qxc6 {[%clk 0:01:46]} 17. bxc3 {[%clk 0:01:52]}  Qxc3 {[%clk 0:01:46]} 18. Rd3 {[%clk 0:01:52]}  Bxd3 {[%clk 0:01:41]} 19. Qxd3 {[%clk 0:01:52]}  Qa1+ {[%clk 0:01:30]} 20. Kd2 {[%clk 0:01:52]}  Qxa2 {[%clk 0:01:30]} 21. Be2 {[%clk 0:01:27]}  Qa5+ {[%clk 0:00:53]} 22. Qc3 {[%clk 0:01:21]}  Qxc3+ {[%clk 0:00:53]} 23. Kxc3 {[%clk 0:01:22]}  Rhg8 {[%clk 0:00:52]} 24. Rg4 {[%clk 0:01:02]}  Rxg4 {[%clk 0:00:36]} 25. hxg4 {[%clk 0:01:01]}  c6 {[%clk 0:00:34]} 26. Bd3 {[%clk 0:01:01]}  h6 {[%clk 0:00:32]} 27. Bf2 {[%clk 0:00:57]}  Kd7 {[%clk 0:00:29]} 28. Bf5+ {[%clk 0:00:44]}  Ke7 {[%clk 0:00:29]} 29. Bh4 {[%clk 0:00:40]}  Rg8 {[%clk 0:00:26]} 30. Kb4 {[%clk 0:00:40]}  b6 {[%clk 0:00:25]} 31. Kb3 {[%clk 0:00:34]}  a5 {[%clk 0:00:25]} 32. Ka4 {[%clk 0:00:26]}  Ra8 {[%clk 0:00:20]} 33. c3 {[%clk 0:00:22]}  Rg8 {[%clk 0:00:20]} 34. Kb3 {[%clk 0:00:18]}  b5 {[%clk 0:00:19]} 35. Ka3 {[%clk 0:00:18]}  Rb8 {[%clk 0:00:18]} 36. Kb3 {[%clk 0:00:18]}  b4 {[%clk 0:00:18]} 37. Be1 {[%clk 0:00:16]}  Kd6 {[%clk 0:00:16]} 38. cxb4 {[%clk 0:00:16]}  axb4 {[%clk 0:00:14]} 39. Bxb4+ {[%clk 0:00:16]}  Kc7 {[%clk 0:00:14]} 40. Kc3 {[%clk 0:00:16]}  Ra8 {[%clk 0:00:14]} 41. Be7 {[%clk 0:00:16]}  Ra1 {[%clk 0:00:10]} 42. Bxf6 {[%clk 0:00:16]}  Rc1+ {[%clk 0:00:10]} 43. Kd2 {[%clk 0:00:16]}  Rf1 {[%clk 0:00:10]} 44. Bg7 {[%clk 0:00:16]}  Kb6 {[%clk 0:00:08]} 45. Ke3 {[%clk 0:00:16]}  c5 {[%clk 0:00:07]} 46. dxc5+ {[%clk 0:00:15]}  Kxc5 {[%clk 0:00:08]} 47. Bd3 {[%clk 0:00:14]}  Rg1 {[%clk 0:00:05]} 48. Bf8+ {[%clk 0:00:14]}  Kc6 {[%clk 0:00:05]} 49. Be2 {[%clk 0:00:14]}  Rg3+ {[%clk 0:00:05]} 50. Bf3 {[%clk 0:00:14]}  Rh3 {[%clk 0:00:03]} 51. Kf2 {[%clk 0:00:14]}  Rh2+ {[%clk 0:00:03]} 52. Bg2 {[%clk 0:00:14]}  Kd7 {[%clk 0:00:01]} 53. Kg3 {[%clk 0:00:14]}  Rxg2+ {[%clk 0:00:02]} 54. Kxg2 {[%clk 0:00:14]}  Ke6 {[%clk 0:00:02]} 55. Kf3 {[%clk 0:00:14]}  f5 {[%clk 0:00:03]} 56. Bxh6 {[%clk 0:00:11]}  fxg4+ {[%clk 0:00:03]} 57. Kxg4 {[%clk 0:00:11]}  d4 {[%clk 0:00:04]} 58. Bg7 {[%clk 0:00:10]}  d3 {[%clk 0:00:04]} 59. Bc3 {[%clk 0:00:10]}  Kd5 {[%clk 0:00:05]} 60. Kf3 {[%clk 0:00:10]}  Ke6 {[%clk 0:00:05]} 61. Ke3 {[%clk 0:00:09]}  Kf5 {[%clk 0:00:06]} 62. Bd2 {[%clk 0:00:10]}  Kg6 {[%clk 0:00:07]} 63. Kxd3 {[%clk 0:00:10]}  Kf7 {[%clk 0:00:08]} 64. Ke4 {[%clk 0:00:10]}  Kg8 {[%clk 0:00:09]} 65. f5 {[%clk 0:00:11]}  Kf7 {[%clk 0:00:10]} 66. Ke5 {[%clk 0:00:12]}  Kg8 {[%clk 0:00:11]} 67. f6 {[%clk 0:00:12]}  Kf7 {[%clk 0:00:12]} 68. Kf5 {[%clk 0:00:12]}  Kg8 {[%clk 0:00:12]} 69. Ke6 {[%clk 0:00:12]}  Kh7 {[%clk 0:00:12]} 70. f7 {[%clk 0:00:12]}  Kg7 {[%clk 0:00:13]} 71. Ke7 {[%clk 0:00:12]}  Kg6 {[%clk 0:00:12]} 72. f8=Q {[%clk 0:00:12]}  Kh7 {[%clk 0:00:13]} 73. Qf6 {[%clk 0:00:10]}  Kg8 {[%clk 0:00:13]} 74. Qf7+ {[%clk 0:00:10]}  Kh8 {[%clk 0:00:13]} 75. Bc3# {[%clk 0:00:11]} 1-0


[Site "https://www.chess.com"]

[Event "Titled Tuesday Blitz December 14 2021"]
[White "Shubin, Kirill"]
[Black "Karttunen, Mika"]
[WhiteFideId "34119962"]
[BlackFideId "502081"]
[WhiteElo "2501"]
[BlackElo "2343"]
[Result "1-0"]
[Round "04"]
[TimeControl "180+1"]
[Date "2021.12.14"]
[WhiteClock "0:00:03"]
[BlackClock "0:00:02"]

1. e4 {[%clk 0:03:00]}  c5 {[%clk 0:02:59]} 2. Nf3 {[%clk 0:03:00]}  a6 {[%clk 0:02:59]} 3. g3 {[%clk 0:03:00]}  Nc6 {[%clk 0:02:54]} 4. Bg2 {[%clk 0:03:00]}  g6 {[%clk 0:02:52]} 5. O-O {[%clk 0:02:53]}  Bg7 {[%clk 0:02:52]} 6. c3 {[%clk 0:02:53]}  e5 {[%clk 0:02:50]} 7. d3 {[%clk 0:02:47]}  Nge7 {[%clk 0:02:49]} 8. Be3 {[%clk 0:02:46]}  d6 {[%clk 0:02:49]} 9. h3 {[%clk 0:02:42]}  O-O {[%clk 0:02:48]} 10. d4 {[%clk 0:02:42]}  b6 {[%clk 0:02:20]} 11. dxe5 {[%clk 0:02:35]}  dxe5 {[%clk 0:02:20]} 12. Qc2 {[%clk 0:02:33]}  Qc7 {[%clk 0:02:16]} 13. a4 {[%clk 0:02:29]}  Na5 {[%clk 0:02:07]} 14. Nbd2 {[%clk 0:02:25]}  Be6 {[%clk 0:02:06]} 15. Rac1 {[%clk 0:02:11]}  c4 {[%clk 0:01:59]} 16. Ng5 {[%clk 0:01:55]}  Bd7 {[%clk 0:01:59]} 17. f4 {[%clk 0:01:55]}  h6 {[%clk 0:01:42]} 18. Ngf3 {[%clk 0:01:54]}  f6 {[%clk 0:01:42]} 19. Ra1 {[%clk 0:01:38]}  Kh7 {[%clk 0:01:38]} 20. fxe5 {[%clk 0:01:14]}  fxe5 {[%clk 0:01:38]} 21. b4 {[%clk 0:01:13]}  cxb3 {[%clk 0:01:37]} 22. Nxb3 {[%clk 0:01:13]}  Nc4 {[%clk 0:01:37]} 23. Bf2 {[%clk 0:01:12]}  Bxh3 {[%clk 0:01:27]} 24. Ng5+ {[%clk 0:01:09]}  hxg5 {[%clk 0:01:24]} 25. Bxh3 {[%clk 0:01:10]}  Rad8 {[%clk 0:01:05]} 26. Qe2 {[%clk 0:01:04]}  Ng8 {[%clk 0:00:48]} 27. Be6 {[%clk 0:00:55]}  Nd6 {[%clk 0:00:42]} 28. Kg2 {[%clk 0:00:53]}  Nh6 {[%clk 0:00:41]} 29. c4 {[%clk 0:00:44]}  Rf6 {[%clk 0:00:35]} 30. Bd5 {[%clk 0:00:43]}  Rdf8 {[%clk 0:00:17]} 31. Be3 {[%clk 0:00:42]}  Rxf1 {[%clk 0:00:13]} 32. Rxf1 {[%clk 0:00:43]}  Rxf1 {[%clk 0:00:13]} 33. Qxf1 {[%clk 0:00:44]}  Qd8 {[%clk 0:00:11]} 34. Qg1 {[%clk 0:00:38]}  b5 {[%clk 0:00:07]} 35. cxb5 {[%clk 0:00:34]}  axb5 {[%clk 0:00:08]} 36. a5 {[%clk 0:00:35]}  Nc4 {[%clk 0:00:08]} 37. a6 {[%clk 0:00:30]}  Ng4 {[%clk 0:00:07]} 38. Bc5 {[%clk 0:00:28]}  Bf8 {[%clk 0:00:06]} 39. a7 {[%clk 0:00:26]}  Bxc5 {[%clk 0:00:03]} 40. Qxc5 {[%clk 0:00:25]}  Nce3+ {[%clk 0:00:03]} 41. Kg1 {[%clk 0:00:18]}  Qf6 {[%clk 0:00:03]} 42. Bg8+ {[%clk 0:00:03]}  Kh6 {[%clk 0:00:03]} 43. Qxe3 {[%clk 0:00:03]}  Nxe3 {[%clk 0:00:03]} 44. Nd2 {[%clk 0:00:03]}  Qd8 {[%clk 0:00:02]} 45. Nf3 {[%clk 0:00:03]} 1-0


[Site "https://www.chess.com"]

[Event "Titled Tuesday Blitz December 14 2021"]
[White "Sipila, Vilka"]
[Black "Nesterov, Arseniy"]
[WhiteFideId "505455"]
[BlackFideId "24198455"]
[WhiteElo "2750"]
[BlackElo "2909"]
[Result "1/2-1/2"]
[Round "04"]
[TimeControl "180+1"]
[Date "2021.12.14"]
[WhiteClock "0:00:33"]
[BlackClock "0:00:05"]

1. d4 {[%clk 0:03:00]}  d5 {[%clk 0:02:59]} 2. c4 {[%clk 0:03:01]}  e6 {[%clk 0:02:58]} 3. Nc3 {[%clk 0:03:00]}  Nf6 {[%clk 0:02:57]} 4. cxd5 {[%clk 0:02:59]}  exd5 {[%clk 0:02:57]} 5. Bg5 {[%clk 0:02:59]}  Be7 {[%clk 0:02:56]} 6. e3 {[%clk 0:02:59]}  h6 {[%clk 0:02:57]} 7. Bh4 {[%clk 0:02:59]}  O-O {[%clk 0:02:57]} 8. Bd3 {[%clk 0:02:59]}  c6 {[%clk 0:02:54]} 9. Nge2 {[%clk 0:02:57]}  Re8 {[%clk 0:02:49]} 10. O-O {[%clk 0:02:57]}  a5 {[%clk 0:02:44]} 11. Qc2 {[%clk 0:02:55]}  Na6 {[%clk 0:02:44]} 12. a3 {[%clk 0:02:54]}  Nc7 {[%clk 0:02:44]} 13. Rae1 {[%clk 0:02:52]}  Ne6 {[%clk 0:02:29]} 14. f3 {[%clk 0:02:44]}  b6 {[%clk 0:02:29]} 15. Kh1 {[%clk 0:02:41]}  c5 {[%clk 0:02:26]} 16. Bb5 {[%clk 0:02:39]}  Bd7 {[%clk 0:02:25]} 17. Qa4 {[%clk 0:02:34]}  Bxb5 {[%clk 0:02:20]} 18. Qxb5 {[%clk 0:02:34]}  Rb8 {[%clk 0:01:59]} 19. Rd1 {[%clk 0:02:30]}  Nc7 {[%clk 0:01:44]} 20. Qc6 {[%clk 0:02:29]}  Qd6 {[%clk 0:01:07]} 21. Qxd6 {[%clk 0:02:21]}  Bxd6 {[%clk 0:01:08]} 22. Bxf6 {[%clk 0:01:35]}  gxf6 {[%clk 0:01:09]} 23. e4 {[%clk 0:01:33]}  c4 {[%clk 0:01:00]} 24. Ng3 {[%clk 0:01:27]}  Bxg3 {[%clk 0:00:53]} 25. hxg3 {[%clk 0:01:28]}  b5 {[%clk 0:00:50]} 26. Rfe1 {[%clk 0:01:21]}  b4 {[%clk 0:00:39]} 27. axb4 {[%clk 0:01:22]}  axb4 {[%clk 0:00:40]} 28. Nxd5 {[%clk 0:01:21]}  Nxd5 {[%clk 0:00:40]} 29. exd5 {[%clk 0:01:22]}  Red8 {[%clk 0:00:41]} 30. Rc1 {[%clk 0:01:20]}  Rbc8 {[%clk 0:00:41]} 31. Re7 {[%clk 0:01:14]}  Rxd5 {[%clk 0:00:38]} 32. Rb7 {[%clk 0:01:14]}  Rxd4 {[%clk 0:00:33]} 33. Rxb4 {[%clk 0:01:14]}  Rd2 {[%clk 0:00:29]} 34. Rc3 {[%clk 0:01:09]}  Re8 {[%clk 0:00:08]} 35. Rcxc4 {[%clk 0:01:08]}  Re1+ {[%clk 0:00:08]} 36. Kh2 {[%clk 0:01:08]}  Ree2 {[%clk 0:00:08]} 37. Kh3 {[%clk 0:01:00]}  Rxg2 {[%clk 0:00:05]} 38. Kg4 {[%clk 0:00:59]}  Rxb2 {[%clk 0:00:04]} 39. Rxb2 {[%clk 0:00:47]}  Rxb2 {[%clk 0:00:05]} 40. Kf5 {[%clk 0:00:46]}  Rb3 {[%clk 0:00:05]} 41. Rg4+ {[%clk 0:00:41]}  Kf8 {[%clk 0:00:05]} 42. f4 {[%clk 0:00:37]}  Ke7 {[%clk 0:00:04]} 43. Rg7 {[%clk 0:00:34]}  Rb5+ {[%clk 0:00:04]} 44. Kg4 {[%clk 0:00:34]}  Kf8 {[%clk 0:00:04]} 45. Rh7 {[%clk 0:00:33]}  Kg8 {[%clk 0:00:03]} 46. Rxh6 {[%clk 0:00:33]}  Kg7 {[%clk 0:00:04]} 47. Rh5 {[%clk 0:00:33]}  Rb3 {[%clk 0:00:03]} 48. Ra5 {[%clk 0:00:32]}  Rc3 {[%clk 0:00:04]} 49. Rb5 {[%clk 0:00:33]}  Ra3 {[%clk 0:00:04]} 50. Rc5 {[%clk 0:00:33]}  Rb3 {[%clk 0:00:04]} 51. Ra5 {[%clk 0:00:33]}  Rc3 {[%clk 0:00:05]} 52. Rb5 {[%clk 0:00:33]}  Ra3 {[%clk 0:00:05]} 53. Rc5 {[%clk 0:00:33]}  Rb3 {[%clk 0:00:05]} 54. Rd5 {[%clk 0:00:33]}  Rc3 {[%clk 0:00:05]} 55. Rb5 {[%clk 0:00:33]} 1/2-1/2


[Site "https://www.chess.com"]